bitfinex/quotes_BTCUSD_20241107
["timestamp","ask_amount","ask_price","bid_price","bid_amount"]
[1730944809130,1.90760891,75425.0,75424.0,0.45011]
[1730944809349,1.86799302,75425.0,75424.0,0.45011]
[1730944809582,1.90760891,75425.0,75424.0,0.45011]
[1730944809812,1.86799302,75425.0,75424.0,0.45011]
[1730944810987,2.36799302,75425.0,75424.0,0.45011]
[1730944812567,2.36799302,75425.0,75424.0,0.495121]
[1730944812782,2.23229302,75425.0,75424.0,0.45011]
[1730944813042,2.13229302,75425.0,75424.0,0.45011]
[1730944814924,1.500052,75425.0,75424.0,0.45011]
[1730944815171,0.000752,75431.0,75425.0,0.079]
[1730944815389,0.000752,75431.0,75426.0,0.00433016]
[1730944815616,0.000752,75431.0,75426.0,0.45443016]
[1730944815849,0.000752,75431.0,75427.0,0.00433016]
[1730944816310,0.000752,75431.0,75428.0,0.45442016]
[1730944816564,0.000752,75431.0,75429.0,0.00433016]
[1730944817017,0.000752,75431.0,75430.0,0.45441016]
[1730944817250,0.13299302,75431.0,75430.0,0.45441016]
[1730944817474,0.13299302,75431.0,75430.0,0.45008]
[1730944817734,0.13950407,75431.0,75430.0,0.45008]
[1730944818651,0.13950407,75431.0,75430.0,0.495088]
[1730944819726,0.00726305,75431.0,75430.0,0.495088]
[1730944819927,0.00726305,75431.0,75430.0,0.45008]
[1730944820370,0.00726305,75431.0,75430.0,0.45441111]
[1730944820799,0.000752,75431.0,75430.0,0.45441111]
[1730944821024,1.500752,75431.0,75430.0,0.45441111]
[1730944821484,1.50730148,75431.0,75430.0,0.45441111]
[1730944823266,1.50730148,75431.0,75430.0,0.45008]
[1730944823490,1.50730148,75431.0,75430.0,0.45441068]
[1730944823752,1.50730148,75431.0,75430.0,0.45008]
[1730944823962,0.00730148,75431.0,75430.0,0.45441091]
[1730944824420,1.500752,75431.0,75430.0,0.45441091]
[1730944824852,1.50735199,75431.0,75430.0,0.45441091]
[1730944827472,0.00735199,75431.0,75430.0,0.45441091]
[1730944827679,0.13299302,75431.0,75430.0,0.45441091]
[1730944827887,0.13299302,75431.0,75430.0,0.45008]
[1730944827888,1.63299302,75431.0,75430.0,0.45008]
[1730944828337,1.63299302,75431.0,75430.0,0.45441054]
[1730944829197,1.73299302,75431.0,75430.0,0.45441054]
[1730944830313,1.70317049,75431.0,75430.0,0.45441054]
[1730944830801,0.505,75425.0,75424.0,0.001668]
[1730944831014,1.06741582,75425.0,75424.0,0.001668]
[1730944831479,1.06741582,75425.0,75414.0,0.1978931]
[1730944831480,0.6,75415.0,75414.0,0.1978931]
[1730944831697,2.23224102,75415.0,75414.0,0.1978931]
[1730944831940,2.23224102,75415.0,75406.0,0.1978931]
[1730944832128,0.23488857,75414.0,75406.0,0.1978931]
[1730944833839,0.23488857,75414.0,75411.0,0.00433733]
[1730944834065,0.23488857,75414.0,75406.0,0.1978931]
[1730944834531,0.23468971,75414.0,75411.0,0.00867518]
[1730944834765,0.23468971,75414.0,75412.0,0.00433764]
[1730944834978,0.25369534,75414.0,75412.0,0.00433764]
[1730944835201,0.25369534,75414.0,75411.0,0.00433754]
[1730944836301,0.25369534,75414.0,75412.0,0.00433726]
[1730944836510,0.25369534,75414.0,75397.0,0.00694119]
[1730944836729,0.25104779,75414.0,75398.0,0.00265232]
[1730944836947,0.25104779,75414.0,75411.0,0.0043371]
[1730944837180,0.25104779,75414.0,75412.0,0.0043371]
[1730944837386,0.25104779,75414.0,75413.0,0.0043371]
[1730944837874,0.25104779,75414.0,75398.0,0.00694119]
[1730944838090,0.25104779,75414.0,75413.0,0.00433708]
[1730944838949,0.09980114,75414.0,75413.0,0.00433708]
[1730944842278,0.01971331,75420.0,75413.0,0.00433708]
[1730944842502,0.1,75418.0,75414.0,0.00433708]
[1730944842714,0.1,75416.0,75415.0,0.00433708]
[1730944842926,0.23224102,75416.0,75415.0,0.00433708]
[1730944843820,0.13224102,75416.0,75415.0,0.00433708]
[1730944844261,1.5,75417.0,75415.0,0.00433708]
[1730944844490,1.5,75417.0,75410.0,0.078268]
[1730944844491,1.6,75417.0,75416.0,0.00433708]
[1730944844913,1.6,75417.0,75416.0,0.0043368]
[1730944845601,1.5,75417.0,75416.0,0.0043368]
[1730944845865,1.5,75417.0,75416.0,0.0512368]
[1730944846069,0.500751,75432.0,75416.0,0.07376994]
[1730944846070,0.1,75431.0,75416.0,0.07376994]
[1730944846280,0.00264755,75430.0,75416.0,0.0469]
[1730944846519,0.63224102,75424.0,75410.0,0.078268]
[1730944846748,0.10264755,75423.0,75412.0,0.1978931]
[1730944846978,0.13224102,75422.0,75412.0,0.1978931]
[1730944847217,0.10264755,75421.0,75412.0,0.1978931]
[1730944847469,0.23488857,75421.0,75412.0,0.1978931]
[1730944847679,0.23488857,75421.0,75417.0,0.01127716]
[1730944847884,0.13224102,75420.0,75417.0,0.004337]
[1730944848104,0.10264755,75419.0,75418.0,0.004337]
[1730944848333,0.23488857,75419.0,75418.0,0.004337]
[1730944848797,0.23488857,75419.0,75418.0,0.00433671]
[1730944849715,0.000834,75425.0,75418.0,0.00433671]
[1730944849716,0.100834,75425.0,75418.0,0.00433671]
[1730944849965,0.10348155,75425.0,75419.0,0.00433671]
[1730944850184,0.10348155,75425.0,75420.0,0.00433671]
[1730944850415,0.10348155,75425.0,75421.0,0.00433671]
[1730944850631,0.10348155,75425.0,75422.0,0.00433671]
[1730944850846,0.10348155,75425.0,75423.0,0.00433671]
[1730944851115,0.10348155,75425.0,75424.0,0.00433671]
[1730944851327,0.100834,75425.0,75424.0,0.00433671]
[1730944853105,0.100834,75425.0,75412.0,0.1978931]
[1730944853316,0.100834,75425.0,75420.0,0.1978931]
[1730944853518,0.100834,75425.0,75421.0,0.01127972]
[1730944853736,0.100834,75425.0,75412.0,0.2336823]
[1730944853737,0.100834,75425.0,75422.0,0.01127972]
[1730944853954,0.100834,75425.0,75424.0,0.001668]
[1730944854179,0.100834,75425.0,75424.0,0.00600598]
[1730944854180,0.10348155,75425.0,75424.0,0.00600598]
[1730944855562,0.100834,75425.0,75424.0,0.00600598]
[1730944856484,0.23572257,75425.0,75424.0,0.01295244]
[1730944856691,0.23572257,75425.0,75424.0,0.01295542]
[1730944856893,0.23572257,75425.0,75424.0,0.00600894]
[1730944857550,0.100834,75425.0,75424.0,0.00600894]
[1730944857760,0.100834,75425.0,75424.0,0.01295542]
[1730944858864,0.100834,75425.0,75424.0,0.00600894]
[1730944859116,0.000834,75425.0,75424.0,0.08270894]
[1730944859343,0.000834,75425.0,75424.0,0.08965542]
[1730944859785,0.000834,75425.0,75424.0,0.078368]
[1730944861153,0.000834,75425.0,75424.0,0.08966215]
[1730944861364,0.000834,75425.0,75424.0,0.48741215]
[1730944862422,0.000834,75425.0,75424.0,0.54082337]
[1730944862624,0.000834,75425.0,75424.0,0.48741215]
[1730944864268,1.5,75430.0,75424.0,0.48741215]
[1730944864487,1.5,75430.0,75425.0,0.01129415]
[1730944864908,1.5,75430.0,75426.0,0.40903415]
[1730944865127,1.5,75430.0,75427.0,0.01129415]
[1730944865354,1.5,75430.0,75428.0,0.44647022]
[1730944865577,1.5,75430.0,75428.0,0.45776437]
[1730944865790,1.6,75430.0,75429.0,0.01129415]
[1730944866011,1.6,75430.0,75429.0,0.20918725]
[1730944866012,1.5,75430.0,75429.0,0.20918725]
[1730944866229,0.000834,75431.0,75430.0,0.0808]
[1730944866449,0.000834,75431.0,75430.0,0.09209415]
[1730944866662,0.000834,75431.0,75430.0,0.48981415]
[1730944866894,0.000751,75432.0,75430.0,0.49705551]
[1730944867083,0.000751,75432.0,75431.0,0.05086786]
[1730944867290,0.000751,75432.0,75431.0,0.01129415]
[1730944867496,0.000751,75432.0,75431.0,0.40900415]
[1730944870202,0.000751,75432.0,75431.0,0.40464806]
[1730944870440,0.000751,75432.0,75431.0,0.40898374]
[1730944870660,0.000751,75432.0,75431.0,0.46644989]
[1730944871358,0.000751,75432.0,75431.0,0.40898374]
[1730944872886,0.000751,75432.0,75431.0,0.40204568]
[1730944873097,0.23299202,75432.0,75431.0,0.40204568]
[1730944873309,0.24063957,75432.0,75431.0,0.39771]
[1730944873529,1.74063957,75432.0,75431.0,0.39771]
[1730944873752,1.73799202,75432.0,75431.0,0.39771]
[1730944875310,1.73299202,75432.0,75431.0,0.39771]
[1730944875531,1.73799202,75432.0,75431.0,0.39771]
[1730944879084,1.87189202,75432.0,75431.0,0.39771]
[1730944881351,1.88589202,75432.0,75431.0,0.39771]
[1730944881842,1.89989202,75432.0,75431.0,0.39771]
[1730944882511,1.93950629,75432.0,75431.0,0.39771]
[1730944882737,1.89989202,75432.0,75431.0,0.39771]
[1730944883002,1.97003536,75432.0,75431.0,0.39771]
[1730944883224,1.88589202,75432.0,75431.0,0.39771]
[1730944883655,1.89989202,75432.0,75431.0,0.39771]
[1730944884070,1.88589202,75432.0,75431.0,0.39771]
[1730944884991,1.90889202,75432.0,75417.0,0.00433113]
[1730944885201,1.06561582,75425.0,75414.0,0.001668]
[1730944885409,1.03002302,75425.0,75414.0,0.001668]
[1730944885627,0.93706102,75425.0,75414.0,0.001668]
[1730944885849,2.39744102,75425.0,75414.0,0.001668]
[1730944886349,2.23224102,75425.0,75414.0,0.001668]
[1730944886596,2.23724102,75425.0,75414.0,0.001668]
[1730944887057,2.49536018,75425.0,75414.0,0.001668]
[1730944887731,2.52454334,75425.0,75414.0,0.001668]
[1730944887955,2.43459898,75425.0,75414.0,0.001668]
[1730944889565,2.43659898,75425.0,75414.0,0.001668]
[1730944890017,2.59218098,75425.0,75414.0,0.001668]
[1730944890249,0.615,75415.0,75414.0,0.1995611]
[1730944890475,0.91541582,75415.0,75414.0,0.1995611]
[1730944890902,0.91541582,75415.0,75414.0,0.001668]
[1730944891109,2.41541582,75415.0,75414.0,0.001668]
[1730944891569,2.54765859,75415.0,75414.0,0.001668]
[1730944891789,2.24724102,75415.0,75414.0,0.001668]
[1730944893076,2.24224102,75415.0,75414.0,0.001668]
[1730944893337,2.23724102,75415.0,75414.0,0.001668]
[1730944894209,2.24224102,75415.0,75414.0,0.001668]
[1730944894690,2.24724102,75415.0,75414.0,0.001668]
[1730944895818,2.54282753,75415.0,75414.0,0.001668]
[1730944896042,2.54282753,75415.0,75410.0,0.001668]
[1730944896043,0.147606,75411.0,75410.0,0.001668]
[1730944896262,0.70556937,75411.0,75410.0,0.001668]
[1730944896492,0.73649017,75411.0,75410.0,0.001668]
[1730944896701,0.86873294,75411.0,75410.0,0.001668]
[1730944896909,2.51476941,75411.0,75410.0,0.001668]
[1730944897363,2.10388417,75411.0,75410.0,0.001668]
[1730944897835,2.23649017,75411.0,75410.0,0.001668]
[1730944898041,2.25049017,75411.0,75410.0,0.001668]
[1730944898265,2.11788417,75411.0,75410.0,0.001668]
[1730944898514,2.26449017,75411.0,75410.0,0.001668]
[1730944898740,2.41073294,75411.0,75410.0,0.001668]
[1730944898972,0.5,75397.0,75383.0,0.0762]
[1730944899199,0.90041582,75397.0,75383.0,0.0762]
[1730944899424,0.90041582,75397.0,75375.0,0.0484]
[1730944899425,0.6,75388.0,75375.0,0.0484]
[1730944899639,0.6,75388.0,75377.0,0.079]
[1730944899640,0.73224102,75388.0,75377.0,0.079]
[1730944899877,2.23224102,75388.0,75378.0,0.1978931]
[1730944900114,2.23224102,75388.0,75379.0,0.00432477]
[1730944900348,2.23224102,75388.0,75378.0,0.1978931]
[1730944900587,2.23224102,75388.0,75379.0,0.00432465]
[1730944900824,2.23224102,75388.0,75378.0,0.1978931]
[1730944902459,2.35038719,75388.0,75378.0,0.1978931]
[1730944902688,2.25194865,75388.0,75378.0,0.1978931]
[1730944906317,2.25194865,75388.0,75379.0,0.00692036]
[1730944906535,2.25194865,75388.0,75378.0,0.1978931]
[1730944906996,2.25194865,75388.0,75379.0,0.00692035]
[1730944907225,2.25194865,75388.0,75378.0,0.1978931]
[1730944907436,2.25194865,75388.0,75387.0,0.00515783]
[1730944907681,2.27198805,75388.0,75387.0,0.00515783]
[1730944907918,2.27198805,75388.0,75387.0,0.000833]
[1730944908142,2.28598805,75388.0,75387.0,0.00515784]
[1730944908547,2.27198805,75388.0,75387.0,0.00515784]
[1730944908783,2.58587782,75388.0,75387.0,0.00515784]
[1730944909009,2.58587782,75388.0,75371.0,0.1978931]
[1730944909010,0.1,75373.0,75371.0,0.1978931]
[1730944909288,0.23488857,75372.0,75371.0,0.19775135]
[1730944909471,0.1,75371.0,75366.0,0.0757]
[1730944909706,0.1,75369.0,75366.0,0.0750115]
[1730944909907,0.1,75369.0,75367.0,0.00692373]
[1730944909908,1.73224102,75368.0,75367.0,0.00692373]
[1730944910140,1.6,75368.0,75367.0,0.00643773]
[1730944910418,1.6,75368.0,75367.0,0.0150777]
[1730944910641,1.6,75368.0,75367.0,0.0130527]
[1730944911076,1.6,75368.0,75367.0,0.0127935]
[1730944911293,1.60327685,75368.0,75367.0,0.0127935]
[1730944911510,1.60327685,75368.0,75367.0,0.0119835]
[1730944911955,1.60586094,75368.0,75367.0,0.010971]
[1730944912398,1.60586094,75368.0,75366.0,0.0750115]
[1730944912601,1.60586094,75368.0,75367.0,0.00864075]
[1730944912852,0.00586094,75368.0,75367.0,0.08513121]
[1730944913070,0.00586094,75368.0,75367.0,0.17468427]
[1730944913299,0.5,75386.0,75372.0,0.0469]
[1730944913529,0.1978931,75378.0,75374.0,0.0469]
[1730944913726,1.5,75385.0,75375.0,0.0809]
[1730944913965,1.5,75385.0,75384.0,0.00720196]
[1730944914456,1.6,75385.0,75384.0,0.00864075]
[1730944915721,0.1,75384.0,75375.0,0.0809]
[1730944915936,0.1,75382.0,75375.0,0.0809]
[1730944916145,0.13224102,75381.0,75376.0,0.00864637]
[1730944916360,0.13556364,75381.0,75377.0,0.00864637]
[1730944916565,1.5,75380.0,75378.0,0.00864637]
[1730944916783,0.13224102,75379.0,75375.0,0.0809]
[1730944917015,0.1355566,75379.0,75375.0,0.0809]
[1730944917235,0.1355566,75379.0,75376.0,0.00864867]
[1730944917442,1.5,75378.0,75377.0,0.00864867]
[1730944917896,1.50331206,75378.0,75377.0,0.02301422]
[1730944918120,1.50331206,75378.0,75377.0,0.01585549]
[1730944918347,1.50331206,75378.0,75377.0,0.00864867]
[1730944918561,1.50331206,75378.0,75375.0,0.0809]
[1730944919668,1.50331206,75378.0,75377.0,0.00721404]
[1730944920159,1.50331206,75378.0,75375.0,0.0809]
[1730944920160,1.52240734,75378.0,75375.0,0.0809]
[1730944920375,1.52240734,75378.0,75377.0,0.00865527]
[1730944921063,1.52240734,75378.0,75377.0,0.01298271]
[1730944921064,0.02240734,75378.0,75377.0,0.01298271]
[1730944921480,0.01909528,75378.0,75377.0,0.01298271]
[1730944921692,1.51909528,75378.0,75377.0,0.01298271]
[1730944921914,1.5,75378.0,75377.0,0.01298271]
[1730944922123,1.50606256,75378.0,75377.0,0.01298271]
[1730944922329,1.50606256,75378.0,75377.0,0.01992005]
[1730944924079,1.52500794,75378.0,75377.0,0.01992005]
[1730944926423,1.50606256,75378.0,75377.0,0.14602005]
[1730944926631,1.50606256,75378.0,75377.0,0.31053301]
[1730944926862,0.00606256,75378.0,75377.0,0.45277403]
[1730944927333,0.00199061,75389.0,75387.0,0.005]
[1730944927540,0.00199061,75389.0,75388.0,0.01125821]
[1730944927783,0.00199061,75389.0,75388.0,0.04297151]
[1730944928433,0.00199061,75389.0,75388.0,0.01125821]
[1730944928646,0.0089737,75389.0,75388.0,0.09901077]
[1730944928860,0.00264755,75417.0,75400.0,0.005]
[1730944929090,0.01958049,75411.0,75408.0,0.22970035]
[1730944929316,0.000834,75409.0,75408.0,0.32245209]
[1730944929543,0.000834,75409.0,75408.0,0.3560641]
[1730944929755,0.000834,75409.0,75408.0,0.36671499]
[1730944929954,0.000834,75409.0,75408.0,0.76454499]
[1730944930602,0.000834,75409.0,75408.0,0.56212498]
[1730944931027,0.000834,75409.0,75408.0,0.56931455]
[1730944931234,0.000834,75409.0,75408.0,0.49782498]
[1730944931450,0.000834,75409.0,75408.0,0.40907409]
[1730944931836,0.000834,75409.0,75408.0,0.40215428]
[1730944932091,0.000834,75409.0,75408.0,0.4690531]
[1730944932729,0.01985152,75409.0,75408.0,0.40904836]
[1730944932945,0.000834,75409.0,75408.0,0.40904836]
[1730944933248,0.000834,75409.0,75408.0,0.40215428]
[1730944933441,0.000834,75409.0,75408.0,0.4021359]
[1730944934653,0.0201554,75409.0,75408.0,0.4021359]
[1730944934889,0.0201554,75409.0,75408.0,0.44234949]
[1730944935090,0.000834,75409.0,75408.0,0.44234949]
[1730944935883,0.000834,75409.0,75408.0,0.4021359]
[1730944936081,0.23307502,75409.0,75408.0,0.39783]
[1730944936249,1.73307502,75409.0,75408.0,0.39783]
[1730944936751,1.81307502,75409.0,75408.0,0.39783]
[1730944937961,1.73307502,75409.0,75408.0,0.39783]
[1730944939223,1.85987502,75409.0,75408.0,0.39783]
[1730944939786,2.35987502,75409.0,75408.0,0.39783]
[1730944939992,2.23807502,75409.0,75408.0,0.39783]
[1730944940440,1.74707502,75409.0,75408.0,0.39783]
[1730944940656,1.73307502,75409.0,75408.0,0.39783]
[1730944940889,1.600834,75409.0,75408.0,0.437613]
[1730944941112,1.600834,75409.0,75408.0,0.39783]
[1730944941113,1.614834,75409.0,75408.0,0.39783]
[1730944941321,1.500834,75409.0,75408.0,0.40213689]
[1730944941766,1.514834,75409.0,75408.0,0.40902887]
[1730944942216,1.500834,75409.0,75408.0,0.40213689]
[1730944942420,1.600834,75409.0,75408.0,0.40213689]
[1730944944597,0.000834,75409.0,75408.0,0.40213689]
[1730944945022,1.600834,75409.0,75408.0,0.40213689]
[1730944945247,1.73307502,75409.0,75408.0,0.40213689]
[1730944945452,1.90124982,75409.0,75408.0,0.40213689]
[1730944945655,1.90124982,75409.0,75408.0,0.39783]
[1730944945905,2.03349259,75409.0,75408.0,0.39783]
[1730944946320,2.06649259,75409.0,75408.0,0.39783]
[1730944946557,0.6,75398.0,75385.0,0.00689198]
[1730944946760,0.6,75398.0,75391.0,0.00431152]
[1730944946761,0.23488857,75397.0,75391.0,0.00431152]
[1730944947195,0.23488857,75397.0,75392.0,0.00431152]
[1730944947690,0.23488857,75397.0,75393.0,0.00431313]
[1730944948167,0.23488857,75397.0,75394.0,0.00431313]
[1730944948397,0.23488857,75397.0,75395.0,0.00431313]
[1730944948611,0.23488857,75397.0,75396.0,0.00431313]
[1730944949540,0.40306337,75397.0,75396.0,0.00431313]
[1730944949819,0.1,75389.0,75382.0,0.00690197]
[1730944950037,0.1,75389.0,75367.0,0.001668]
[1730944950038,0.00264755,75388.0,75383.0,0.00431453]
[1730944950489,0.00264755,75388.0,75384.0,0.00431453]
[1730944950697,0.07708224,75387.0,75384.0,0.00431453]
[1730944950914,0.1,75381.0,75373.0,0.00690197]
[1730944951189,0.1,75381.0,75374.0,0.00431158]
[1730944951190,0.1,75379.0,75374.0,0.00431158]
[1730944951414,0.1731748,75375.0,75374.0,0.00431158]
[1730944951630,0.1731748,75375.0,75363.0,0.1978931]
[1730944951631,0.2681748,75364.0,75363.0,0.1978931]
[1730944951856,0.40041582,75364.0,75363.0,0.1978931]
[1730944952122,1.90041582,75364.0,75363.0,0.00431285]
[1730944952396,0.6,75361.0,75360.0,0.000833]
[1730944952651,0.73224102,75361.0,75360.0,0.000833]
[1730944954464,0.23177659,75361.0,75360.0,0.000833]
[1730944954679,0.23177659,75361.0,75360.0,0.00513539]
[1730944954680,0.23442414,75361.0,75360.0,0.00513539]
[1730944955351,0.23177659,75361.0,75360.0,0.00513539]
[1730944955569,0.23442414,75361.0,75360.0,0.00513539]
[1730944955784,0.23177659,75361.0,75360.0,0.00513539]
[1730944956219,1.73177659,75361.0,75360.0,0.00513539]
[1730944961580,1.59953557,75361.0,75360.0,0.00513539]
[1730944961801,1.59953557,75361.0,75360.0,0.000833]
[1730944962022,1.59953557,75361.0,75360.0,0.0051302]
[1730944962229,1.59953557,75361.0,75360.0,0.01200675]
[1730944964588,1.59953557,75361.0,75360.0,0.02060737]
[1730944964796,0.01956178,75364.0,75360.0,0.02060737]
[1730944965051,0.10348155,75368.0,75361.0,0.01117375]
[1730944965260,0.1,75366.0,75362.0,0.01117375]
[1730944965456,0.23224102,75366.0,75362.0,0.01117375]
[1730944965662,0.23224102,75366.0,75363.0,0.01117375]
[1730944965864,0.1,75366.0,75364.0,0.00687655]
[1730944966313,0.1,75364.0,75361.0,0.0086009]
[1730944966534,1.5,75365.0,75361.0,0.00969339]
[1730944966731,1.5,75365.0,75360.0,0.000833]
[1730944966925,1.5,75365.0,75362.0,0.01978907]
[1730944967283,1.49990282,75365.0,75363.0,0.21768217]
[1730944967490,1.49990282,75365.0,75364.0,0.06650021]
[1730944967711,0.000834,75368.0,75365.0,0.005]
[1730944967916,0.000834,75368.0,75366.0,0.00965327]
[1730944968109,0.000834,75368.0,75367.0,0.02217018]
[1730944968401,0.000834,75368.0,75367.0,0.12445956]
[1730944968686,0.1978931,75400.0,75375.0,0.005]
[1730944968909,0.1978931,75400.0,75376.0,0.01978778]
[1730944969115,1.5,75389.0,75379.0,0.005]
[1730944969316,1.5,75389.0,75381.0,0.005]
[1730944969502,1.5,75389.0,75382.0,0.11322948]
[1730944970136,1.5,75389.0,75383.0,0.01977335]
[1730944970365,1.5,75389.0,75384.0,0.0111753]
[1730944970575,1.5,75389.0,75385.0,0.0161753]
[1730944970784,0.1978931,75400.0,75388.0,0.005]
[1730944970998,0.1978931,75400.0,75389.0,0.00265247]
[1730944971196,1.5,75399.0,75389.0,0.02242582]
[1730944971623,1.5,75399.0,75390.0,0.0111753]
[1730944971842,1.5,75399.0,75397.0,0.005]
[1730944972062,0.1978931,75420.0,75408.0,0.002]
[1730944972286,0.1978931,75420.0,75408.0,0.00765173]
[1730944972525,0.1978931,75420.0,75408.0,0.16278862]
[1730944972745,0.1978931,75420.0,75419.0,0.005]
[1730944973190,0.1978931,75420.0,75419.0,0.01977335]
[1730944973391,0.000834,75424.0,75419.0,0.01977335]
[1730944973594,0.33013412,75420.0,75418.0,0.00713946]
[1730944973829,0.25472141,75423.0,75418.0,0.00713946]
[1730944973830,0.14988857,75419.0,75418.0,0.00713946]
[1730944974049,0.605,75417.0,75416.0,0.00859805]
[1730944974292,0.605,75417.0,75388.0,0.00859805]
[1730944974293,0.1,75407.0,75388.0,0.00859805]
[1730944974511,0.1,75405.0,75401.0,0.00428354]
[1730944974717,0.1,75403.0,75401.0,0.00428354]
[1730944974950,0.23488857,75402.0,75401.0,0.00428354]
[1730944975190,0.23488857,75402.0,75390.0,0.00685462]
[1730944975392,0.23488857,75402.0,75396.0,0.1978931]
[1730944975393,0.1,75401.0,75396.0,0.1978931]
[1730944975602,0.1,75399.0,75391.0,0.00428593]
[1730944976008,0.1,75399.0,75392.0,0.01114055]
[1730944976209,0.1,75397.0,75392.0,0.01114055]
[1730944976434,0.1,75397.0,75393.0,0.00685462]
[1730944976637,0.1,75397.0,75394.0,0.01114055]
[1730944977082,1.5,75396.0,75394.0,0.01114055]
[1730944977287,1.5,75396.0,75395.0,0.01114055]
[1730944978394,1.5,75396.0,75395.0,0.0197386]
[1730944978549,1.50253771,75396.0,75395.0,0.0197386]
[1730944979778,1.50253771,75396.0,75395.0,0.0197049]
[1730944980830,1.50253771,75396.0,75395.0,0.01113661]
[1730944981465,1.50253771,75396.0,75395.0,0.0197049]
[1730944982373,1.50253771,75396.0,75395.0,0.01113524]
[1730944984045,1.50253771,75396.0,75395.0,0.01970248]
[1730944984504,1.50253771,75396.0,75395.0,0.02684335]
[1730944984671,1.50253771,75396.0,75395.0,0.01970248]
[1730944985097,1.50253771,75396.0,75395.0,0.02683604]
[1730944985324,1.50337171,75396.0,75395.0,0.01113524]
[1730944985567,1.73561273,75396.0,75395.0,0.01113524]
[1730944985821,0.1,75395.0,75388.0,0.00856039]
[1730944986022,1.63561273,75396.0,75389.0,0.00684851]
[1730944986023,0.1,75393.0,75389.0,0.00684851]
[1730944986248,0.00551461,75392.0,75389.0,0.00684851]
[1730944986474,0.00551461,75392.0,75390.0,0.01112867]
[1730944986738,0.00318855,75391.0,75390.0,0.01112867]
[1730944986975,0.00318855,75391.0,75390.0,0.00428016]
[1730944987194,0.00318855,75391.0,75390.0,0.01112867]
[1730944988877,0.02240945,75391.0,75390.0,0.01112867]
[1730944989087,0.13542957,75391.0,75390.0,0.01112867]
[1730944989314,0.73807712,75391.0,75390.0,0.01112867]
[1730944989540,0.73829311,75391.0,75390.0,0.00428016]
[1730944990526,0.1,75390.0,75382.0,0.00685923]
[1730944990770,0.1,75388.0,75383.0,0.00428708]
[1730944990973,0.1,75388.0,75383.0,0.00685923]
[1730944990974,0.25472141,75384.0,75383.0,0.00685923]
[1730944991175,0.48960998,75384.0,75383.0,0.00685923]
[1730944991386,0.5,75380.0,75379.0,0.1978931]
[1730944991555,0.63224102,75380.0,75369.0,0.00686183]
[1730944991769,0.13488857,75379.0,75376.0,0.1978931]
[1730944991965,0.13488857,75379.0,75377.0,0.00428854]
[1730944992183,0.00281779,75378.0,75377.0,0.00428854]
[1730944992353,0.23505881,75378.0,75371.0,0.00686183]
[1730944992560,0.13488857,75377.0,75372.0,0.02047549]
[1730944992753,0.13488857,75377.0,75373.0,0.00429044]
[1730944992955,0.00281075,75376.0,75373.0,0.00429044]
[1730944993153,0.00281075,75376.0,75372.0,0.02047549]
[1730944993154,1.50281075,75376.0,75374.0,0.00429044]
[1730944993463,1.50281075,75376.0,75375.0,0.00429044]
[1730944993695,1.50281075,75376.0,75375.0,0.01115854]
[1730944995824,1.50281075,75376.0,75375.0,0.01974185]
[1730944996295,1.50281075,75376.0,75372.0,0.02047549]
[1730944996542,1.50281075,75376.0,75375.0,0.0197599]
[1730944997034,1.50281075,75376.0,75375.0,0.0214279]
[1730945000000,1.50281075,75376.0,75375.0,0.001668]
[1730945000242,1.50281075,75376.0,75375.0,0.02140855]
[1730945001704,1.50584282,75376.0,75375.0,0.02140855]
[1730945005187,1.63808384,75376.0,75375.0,0.01282476]
[1730945005416,1.63808384,75376.0,75375.0,0.00595869]
[1730945005914,1.76108384,75376.0,75375.0,0.00595869]
[1730945006143,1.84558384,75376.0,75375.0,0.001668]
[1730945006374,1.83774102,75376.0,75375.0,0.001668]
[1730945007267,1.84774102,75376.0,75375.0,0.001668]
[1730945009068,1.86174102,75376.0,75375.0,0.001668]
[1730945009685,1.87574102,75376.0,75375.0,0.001668]
[1730945009912,1.86174102,75376.0,75375.0,0.001668]
[1730945010134,1.84774102,75376.0,75375.0,0.001668]
[1730945010602,0.1,75365.0,75362.0,0.1978931]
[1730945010861,0.23488857,75365.0,75362.0,0.1978931]
[1730945011332,0.23488857,75365.0,75360.0,0.000833]
[1730945011565,1.73488857,75365.0,75360.0,0.000833]
[1730945011794,1.73224102,75365.0,75360.0,0.000833]
[1730945014366,1.89248379,75365.0,75360.0,0.000833]
[1730945015478,0.028,75364.0,75360.0,0.000833]
[1730945015708,0.028,75364.0,75355.0,0.0015]
[1730945015709,0.683,75356.0,75355.0,0.0015]
[1730945016003,0.82024102,75356.0,75355.0,0.0015]
[1730945016194,2.32224102,75356.0,75355.0,0.0015]
[1730945016441,0.005,75349.0,75348.0,0.00067]
[1730945016672,0.26288857,75349.0,75348.0,0.00067]
[1730945017375,1.76288857,75349.0,75348.0,0.00067]
[1730945017603,1.92850306,75349.0,75348.0,0.00067]
[1730945018067,0.76826204,75343.0,75334.0,0.001502]
[1730945018291,0.90050306,75343.0,75334.0,0.001502]
[1730945018980,2.40050306,75343.0,75334.0,0.001502]
[1730945019445,2.23224102,75343.0,75334.0,0.001502]
[1730945019669,2.23224102,75343.0,75338.0,0.001502]
[1730945021489,2.31765261,75343.0,75338.0,0.001502]
[1730945021935,2.25158614,75343.0,75338.0,0.001502]
[1730945022425,0.133,75342.0,75338.0,0.001502]
[1730945022655,0.002,75339.0,75338.0,0.001502]
[1730945022880,0.13688857,75339.0,75338.0,0.001502]
[1730945023113,1.7701424,75339.0,75338.0,0.001502]
[1730945023346,0.6,75335.0,75334.0,0.001502]
[1730945023574,0.98906392,75335.0,75334.0,0.001502]
[1730945023798,0.98706392,75335.0,75334.0,0.001502]
[1730945024048,0.1,75334.0,75333.0,0.001502]
[1730945024278,0.1,75324.0,75322.0,0.1978931]
[1730945024501,0.23488857,75323.0,75322.0,0.1978931]
[1730945024718,0.23488857,75323.0,75314.0,0.001502]
[1730945025209,1.5,75320.0,75314.0,0.001502]
[1730945025434,0.13488857,75319.0,75314.0,0.001502]
[1730945025887,1.5,75315.0,75314.0,0.001502]
[1730945027489,1.63224102,75315.0,75314.0,0.001502]
[1730945028207,1.73224102,75315.0,75314.0,0.001502]
[1730945029141,0.5,75306.0,75287.0,0.0487]
[1730945029373,0.00264755,75305.0,75285.0,0.0755]
[1730945029606,0.5,75294.0,75285.0,0.0755]
[1730945029834,0.00264755,75293.0,75285.0,0.0755]